Cogmind - Beta 16.1 @@@ ROGUE MODE // 2026.04.30 @ 12:35:03 Player: SunShine214 Result: Destroyed by IX-A3C(R) with Subdweller Machine Gun Performance ------------- Evolutions (0) 0 Regions Visited (2) 400 Robots Destroyed (35) 175 Value Destroyed (478) 478 Prototype IDs (13) 260 Alien Tech Used (0) 0 Bonus (0) 0 TOTAL SCORE: 1313 Bonus ------- None Cogmind --------- Core Integrity 0/250 Matter 274/300 Energy 200/200 System Corruption 0% Temperature Cool (0) Movement Walking (130) Location -10/Subcaves Parts ------- > --- POWER (1) -------- Subdweller Power Source > --- PROPULSION (2) --- Cargo Legs > --- UTILITY (2+2) ---- Large Storage Unit Sensor Array > --- WEAPON (2) ------- (None) > --- INVENTORY (15) --- Improved Ion Engine Light Treads Light Treads Flight Unit Flight Unit 1B-0RG's Assimilator Mining Laser Peak State ------------ > --- POWER ------------ Improved Ion Engine > --- PROPULSION ------- Cargo Legs > --- UTILITY ---------- Large Storage Unit Sensor Array > --- WEAPON ----------- Heavy Assault Rifle Mining Laser > --- INVENTORY -------- Light Treads Light Treads Flight Unit Flight Unit Beam Cannon 1B-0RG's Assimilator [Rating: 30] Favorites ----------- Power Ion Engine Engine Ion Engine Propulsion Light Treads Treads Light Treads Leg Cargo Legs Flight Unit Flight Unit Utility Seismic Detector Device Seismic Detector Storage Small Storage Unit Weapon Beam Cannon Energy Gun Small Laser Energy Cannon Beam Cannon Ballistic Gun Heavy Assault Rifle Special Weapon Mining Laser Build | -11 -10 -10 ------- Run | Yrd Mat Sub Slots Evolved . | . . . Power . | . . . Propulsion . | . . . Utility . | . . . Weapon . | . . . Parts Attached 23 | 7 5 11 Power 3 | 1 . 2 Engine 3 | 1 . 2 Core . | . . . Reactor . | . . . Propulsion 8 | 2 . 6 Treads 4 | 2 . 2 Leg 1 | . . 1 Wheel . | . . . Hover . | . . . Flight 3 | . . 3 Utility 6 | 2 2 2 Device 2 | 1 . 1 Storage 4 | 1 2 1 Processor . | . . . Hackware . | . . . Protection . | . . . Artifact . | . . . Weapon 6 | 2 3 1 Energy Gun 2 | 2 . . Energy Cannon 2 | . 2 . Ballistic Gun 1 | . . 1 Ballistic Cannon . | . . . Launcher . | . . . Special Weapon 1 | . 1 . Impact Weapon . | . . . Slashing Weapon . | . . . Piercing Weapon . | . . . Special Melee Weapon . | . . . Unidentified Prototypes . | . . . Parts Lost 5 | . 1 4 Power 1 | . . 1 Propulsion . | . . . Utility 1 | . 1 . Weapon 3 | . . 3 Highest Loss Streak 2 | . 1 2 To Critical Strikes 1 | . . 1 Average Backups 5 | . 6 5 Power . | . . . Propulsion 2 | . 2 3 Utility 1 | . 2 . Weapon . | . 1 1 Tool/Special . | . . . Unused Backups 5 | . 2 3 Power . | . . . Propulsion 3 | . 2 1 Utility 1 | . . 1 Weapon . | . . . Tool/Special 1 | . . 1 Average Slot Usage (%) 87 | . 97 67 Engine 11 | . 14 7 Treads 19 | . 28 1 Leg 1 | . . 5 Flight 3 | . . 10 Device 11 | . 11 11 Storage 11 | . 14 6 Energy Gun 4 | . 6 . Energy Cannon 17 | . 21 9 Ballistic Gun 2 | . . 7 Special Weapon 2 | . . 6 Peak Build Rating 30 | 7 7 30 Average Rating 10 | 6 6 18 On Entrance 4 | . 7 7 Avg Prop Armor Cover (%) . | . . . Naked Turns . | . . . Heaviest Build 32 | 13 32 32 Greatest Support 55 | 40 40 55 Greatest Overweight (x) 1 | . . 1 Average Overweight (x) . | . . . Largest Inventory Capacity 15 | 8 15 15 Average Capacity 9 | 7 9 10 Most Carried 11 | 1 10 11 Average Carried 5 | . 6 7 Final Capacity 15 | 8 15 15 Final Carried 11 | 1 10 11 Class Distribution -------------------- 100% | Mutant Dominant Class ---------------- Mutant | -10/Materials Mutant | -10/Subcaves Resources | -11 -10 -10 ----------- Run | Yrd Mat Sub Matter Collected 502 | 270 55 177 Remotely . | . . . Salvage Created 962 | 252 516 194 Parts 67 | 18 34 15 Haulers Intercepted 1 | . 1 . Recyclers Shooed 1 | . 1 . Parts Field Recycled . | . . . Retrieved Matter . | . . . Parts Self-Destructed 14 | . . 14 Prevented . | . . . Parts Restored . | . . . Kills | -11 -10 -10 ------- Run | Yrd Mat Sub Combat Hostiles Destroyed 22 | . 15 7 Guns 6 | . 5 1 Cannons 16 | . 10 6 Classes Destroyed 8 | 3 4 1 Worker 2 | 2 . . Tunneler 6 | 6 . . Hauler 1 | . 1 . Recycler 3 | 1 2 . Operator 1 | . 1 . Swarmer 16 | . 12 4 Grunt 5 | . 3 2 Sentry 1 | . . 1 Best Kill Streak 5 | 4 5 3 Combat Bots Only 5 | . 5 3 Max Kills in Single Turn 2 | 1 2 1 Gunslinging 1 | . 1 . Exploded . | . . . Melee . | . . . Uniques/NPCs Destroyed . | . . . Combat | -11 -10 -10 -------- Run | Yrd Mat Sub Hostile Shots Fired 132 | . 79 53 Missed 39 | . 26 13 Hits 93 | . 53 40 Projectile 93 | . 53 40 Critical Strikes 3 | . . 3 Damage Taken 1119 | . 540 579 Core 266 | . 109 157 Absorbed by Shields . | . . . Core Remaining (%) 100 | 100 . . Volleys Fired 96 | 17 49 30 Largest 2 | 2 2 2 Hottest 140 | 80 140 123 Shots Fired 179 | 34 98 47 Gun 70 | 34 25 11 Cannon 105 | . 72 33 Launcher . | . . . Special 4 | . 1 3 Kinetic 11 | . . 11 Thermal 168 | 34 98 36 Explosive . | . . . Electromagnetic . | . . . Robot Hit Streak 10 | 6 10 4 Robot Miss Streak 5 | 2 5 3 Penetration Max . | . . . Secondary Targets 3 | . 3 . Max Gunslinging Chain 1 | . 1 . Shots Hit Robots 87 | 19 42 26 Core Hits 39 | 10 21 8 Critical Kills . | . . . Critical Parts Destroyed . | . . . Critical Strikes . | . . . Melee Attacks . | . . . Impact . | . . . Slashing . | . . . Piercing . | . . . Sneak Attacks . | . . . Combat Hostiles . | . . . Follow-up Attacks . | . . . Damage Inflicted 1382 | 231 704 447 Guns 401 | 231 141 29 Cannons 978 | . 560 418 Explosions . | . . . Melee . | . . . Ramming 3 | . 3 . Kinetic 29 | . . 29 Thermal 1350 | 231 701 418 Explosive . | . . . Electromagnetic . | . . . Impact . | . . . Slashing . | . . . Piercing . | . . . Highest Corruption . | . . . Average Corruption . | . . . Corruption Purged . | . . . Corruption Blocked . | . . . Overload Shots . | . . . Overflow Damage 13 | . 13 . Projectiles 13 | . 13 . Explosions . | . . . Melee . | . . . Knockbacks . | . . . Impact . | . . . Kinetic . | . . . Secondary . | . . . Self-Inflicted Damage . | . . . Shots . | . . . Rammed 1 | . 1 . Targets Rammed 1 | . 1 . Kicked . | . . . Crushed . | . . . Highest Temperature 300 | 72 300 19 Average Temperature 76 | 25 93 8 Received Heat Transfer 171 | . 36 135 Effects 1 | . 1 . Energy Bleed 1 | . 1 . Siege Activations . | . . . Martial Activations . | . . . Shielding Activations . | . . . Robots Disrupted . | . . . Combat Hostiles . | . . . Robots Corrupted . | . . . Combat Hostiles . | . . . Parts Fried . | . . . Impact Corruptions . | . . . Robots Melted . | . . . Combat Hostiles . | . . . Parts Melted 2 | . 1 1 Heat Transferred 2922 | 525 1509 888 Parts Sabotaged . | . . . Parts Stolen . | . . . Parts Stripped . | . . . Power Chain Reactions . | . . . Alert | -11 -10 -10 ------- Run | Yrd Mat Sub Maximum Alert Level . | . . . Low Security (%) 100 | 100 100 . Level 1 . | . . . Level 2 . | . . . Level 3 . | . . . Level 4 . | . . . Level 5 . | . . . High Security . | . . . Max Security . | . . . Peak Influence 135 | 15 135 . Initial . | . . . Average 47 | 2 55 . Influence Increases 746 | 45 506 195 Destroy 0b10 Robot/C 440 | . 300 140 Destroy 0b10 Robot/NC 65 | 45 20 . Destroy Leader 72 | . 62 10 Successful Hack 14 | . 14 . Disable Machine 15 | . 15 . Destroy Structure 5 | . 5 . Lose Combat Pursuer 135 | . 90 45 Influence Decreases 746 | 45 399 302 Entered New Map 52 | . . 52 Time Decay 664 | 45 389 230 Lost Part 30 | . 10 20 Squads Dispatched 2 | . 2 . Investigation 1 | . 1 . Extermination . | . . . Reinforcement 1 | . 1 . Assault . | . . . Garrison . | . . . Intercept . | . . . Searches Triggered . | . . . Construction Impeded . | . . . Haulers Reinforced . | . . . Active Scanning Responses . | . . . Cargo Convoy Interrupts . | . . . Stealth | -11 -10 -10 --------- Run | Yrd Mat Sub Distress Signals . | . . . Communications Jammed . | . . . Distress Signals . | . . . Times Spotted 37 | . 27 10 Peak Tracking Total 5 | . 5 3 Tactical Retreats 6 | . 4 2 Traps | -11 -10 -10 ------- Run | Yrd Mat Sub Traps Triggered 3 | . 3 . Indirectly . | . . . Trap Hack Attempts . | . . . Triggered . | . . . Disarmed . | . . . Reprogrammed . | . . . Reused . | . . . Traps Extracted . | . . . Installed . | . . . Triggered . | . . . Machines | -11 -10 -10 ---------- Run | Yrd Mat Sub Machines Disabled 2 | . 1 1 Max in Single Turn 1 | . 1 1 Machines Repaired . | . . . Machines Dismantled . | . . . Machines Sabotaged . | . . . Overloaded Fab Kills . | . . . Hacking | -11 -10 -10 --------- Run | Yrd Mat Sub Machines Accessed 6 | . 5 1 Terminals 4 | . 4 . Fabricators . | . . . Repair Stations . | . . . Recycling Units 1 | . 1 . Scanalyzers . | . . . Garrison Access . | . . . Total Hacks 12 | . 11 1 Successful 5 | . 4 1 Failed 7 | . 7 . Catastrophic 1 | . 1 . Database Lockouts . | . . . Manual . | . . . Terminals 10 | . 10 . Fabricators . | . . . Repair Stations . | . . . Recycling Units 1 | . 1 . Scanalyzers . | . . . Garrison Access . | . . . Terminal Hacks 4 | . 3 1 Patrol Status 1 | . 1 . Recall Investigation 1 | . 1 . Registered Components 1 | . 1 . Proto ID Catalog 1 | . . 1 Fabricator Hacks . | . . . Repair Station Hacks . | . . . Recycling Unit Hacks 1 | . 1 . Retrieve Components 1 | . 1 . Scanalyzer . | . . . Garrison Access Hacks . | . . . Unauthorized Hacks . | . . . Terminals . | . . . Fabricators . | . . . Repair Stations . | . . . Recycling Units . | . . . Scanalyzers . | . . . Garrison Access . | . . . Data Cores Recovered . | . . . Used . | . . . Hacking Detections 3 | . 3 . Full Trace Events . | . . . Feedback Events . | . . . Feedback Blocked . | . . . Robot Schematics Acquired . | . . . Robots Built . | . . . Authchips . | . . . Time . | . . . Total Robot Build Rating . | . . . Part Schematics Acquired . | . . . Parts Built . | . . . Authchips . | . . . Time . | . . . Total Part Build Rating . | . . . Part Studies Acquired . | . . . Parts Repaired . | . . . Time . | . . . Parts Recycled . | . . . Recycled Matter . | . . . Retrieved Matter . | . . . Retrieved Components 2 | . 2 . Parts Scanalyzed . | . . . Part Schematics Acquired . | . . . Parts Damaged . | . . . Bothacking | -11 -10 -10 ------------ Run | Yrd Mat Sub Used RIF Installer . | . . . Robots Hacked . | . . . Non-combat . | . . . Combat . | . . . Robot Hacks Applied . | . . . Relay Couplers Released . | . . . Fabnet Peak Effective % . | . . . Robots Rewired . | . . . Allies Hacked . | . . . Hacks Repelled . | . . . Allies | -11 -10 -10 -------- Run | Yrd Mat Sub Total Allies . | . . . Largest Group . | . . . Highest-Rated Group . | . . . Highest-Rated Ally . | . . . Total Orders . | . . . Ally Attacks . | . . . Total Damage . | . . . Kills . | . . . Allies Corrupted . | . . . Allies Melted . | . . . Intel | -11 -10 -10 ------- Run | Yrd Mat Sub Active Infowar (turns) 1811 | 153 1072 586 Sensors 586 | . . 586 Seismic 1225 | 153 1072 . Robot Analysis Total . | . . . Derelict Logs Recovered . | . . . Drone Launches . | . . . Drone Recoveries . | . . . Exploration | -11 -10 -10 ------------- Run | Yrd Mat Sub Turns Passed 2089 | 221 1275 593 Spaces Moved 1121 | 94 525 502 Core 4 | 4 . . Treads 617 | 90 525 2 Legs 217 | . . 217 Wheels . | . . . Hover . | . . . Flight 283 | . . 283 Fastest Speed 37 | 50 160 37 Average Speed 123 | 155 160 78 Slowest Speed 160 | 160 160 160 Overloaded Moves . | . . . Propulsion Burnouts . | . . . Robots Hopped . | . . . Potential Cave-ins . | . . . Cave-ins Triggered . | . . . Exploration Rate (%) 41 | 6 90 29 Regions Visited 2 Branch Regions 1 Pre-discovered Areas . | . . . Known Exits Taken . | . . . Unknown Exits Taken 2 | 1 1 . Scrap Searched . | . . . Spaces Dug . | . . . Terrain Destroyed . | . . . Melee . | . . . Projectile . | . . . AOE . | . . . Terrain Rammed . | . . . Walls Destroyed . | . . . Machines Disabled . | . . . Actions | -11 -10 -10 --------- Run | Yrd Mat Sub Total 1636 | 132 858 646 Wait 357 | 14 267 76 Move 1119 | 93 524 502 Hop . | . . . Pick Up 15 | 1 9 5 Fast Attach 12 | 7 . 5 Attach 4 | . . 4 Detach 1 | . . 1 Swap 16 | . 6 10 Drop 15 | . 2 13 Fire 96 | 17 49 30 Melee . | . . . Ram . | . . . Kick . | . . . Crush 1 | . 1 . Escape Stasis . | . . . Rewire . | . . . Trap . | . . . Miscellaneous . | . . . Route ------- -11/Scrapyard -10/Materials (discovered 5 exits: [*Mat x2] / [*Min x2] / *Sub) -10/Subcaves History --------- Turn | Location | Event 29 | -11/Scrapyard | Discovered new exit (range 15) 222 | -11/Scrapyard | Entered Materials 318 | -10/Materials | Build established: Mutant 678 | -10/Materials | Discovered new exit (range 7) 931 | -10/Materials | Discovered new exit (range 12) 1235 | -10/Materials | Discovered new exit (range 7) 1400 | -10/Materials | Discovered new exit (range 9) 1486 | -10/Materials | Discovered new exit (range 8) 1497 | -10/Materials | Entered Subcaves 1498 | -10/Subcaves | Approached by a straggling Scientist 1516 | -10/Subcaves | Shifting Twisted Machinery released Sub. Laser 1517 | -10/Subcaves | Shifting Twisted Machinery released Sub. Laser 1565 | -10/Subcaves | Core integrity fell below 50% 1741 | -10/Subcaves | Visited 4L-MR0's lab 1765 | -10/Subcaves | Found Cargo Legs 1766 | -10/Subcaves | Attached Cargo Legs, gained temporary slots: Utility x2 1791 | -10/Subcaves | Found Prototype Special Melee Weapon 1872 | -10/Subcaves | Shifting Twisted Machinery released Riot Gun 1896 | -10/Subcaves | Shifting Twisted Machinery released Battle Rifle 1907 | -10/Subcaves | A swath of the cavern ceiling suddenly collapsed 2078 | -10/Subcaves | Core integrity fell below 20% 2090 | -10/Subcaves | Destroyed by IX-A3C(R) with Subdweller Machine Gun Last Messages --------------- slot. 01781_ 4L-MR0 mumbles: "I'm surprised some of them are even willing to come in here given their fear of my usual visitors." 01788_ 4L-MR0 mumbles: "Who knows where that last prototype ended up, probably tossed aside somewhere as if it were useless junk..." 01791_ Acquired Prototype Special Melee Weapon. 01795_ Acquired Flight Unit. Riot Gun falls loose from the Twisted Machinery. Battle Rifle falls loose from the Twisted Machinery. A swath of the cavern ceiling suddenly collapses. 01937_ Subatomizers dissect the Wheel. 01951_ Acquired 29 matter. 01957_ Acquired 19 matter. 01959_ Subatomizers dissect the Wheel. 02059_ Hvy. Assault Rifle destroyed. 02089_ Beam Cannon destroyed. Map ----- +----------------------------------------------------+ | ??????? ????????????????????????????????????????? | | ???????? ???????????????????????????????????????# | | ???????? ########??????????????????????########## | | ?????#??? #??????????????????##### " # # | | ????## ?? ???????????????????# " "" | | ????# ??# ?????###???????##??# " ""[ | | ????# ?# #???? ???????? ##?## " " ##### | | ????# ## ##?? #????????? #?# ## ##???? | | ?????# ### #???????? #?# ## ##????? | | ?????# ## #????????? ####[" #???## | | # ## #????????# ### ### #####" | | # #???????# #??## ###"#"" | | # ## # #######?## #??# #""""" | | # ?????### # ##???## ### #??#####"##"# | | ??????????### ##??## ##????#####" | | ??????????# #?##" #???? ###??????#" | | ??????????# #?# ##?????# #??????#" | | ??????????## ####" ## #?????## ##??#### | | ???????????# ##"" ### ##???## #### # # | | ???????????# %& % ### ##### ## | | ???????????# = ## ## # | | ???????????# ### ##R ## ### | | ???????????# #####?###R ### #??## | | ???????????# #??????## ### ##???? | | ?????####### #?????## ### ## ##????? | | ????## #####?????# @ ## ####?????? | | ????# #?????????# ##????????? | | ????# #?????????## #?????????? | | ???## ##?????????#### #?????????? | | ??## #????????????## #????????? | | ### #### #????????????# ## #???????? | | #??## #????????????# ### #???????? | | #???#####???????????# #?# #???????? | | ####?????????????????# ##?# #???????? | | ## ##????????????????####?? ##???????? | | #????????????????????? ##????????? | | #????????????????????? #?????????? | | ##???????????????????? ?????????? | | ### ????????????? ????????? | | ???????????? # ####### ???????? | | ## #??????????? ??????? ???????? | | #? ???????????? ???????? ???????? | | ????????????? ????????????????? | | ## ?????????????? ????????????????? | | ##? ???????????????????????????????? | | ##??# ????????????????????????????????? | | # ##????# ????????????????????????????????? | | # #??????# ?????????????????????????????????? | | # ????????### ?????????????????????????????????? | | # ?????????????????????????????????????????????? | +----------------------------------------------------+ Best States ------------- Heat Dissipation 25 Energy Generation 15 Energy Capacity 265 Matter Stores 300 Matter Capacity 300 Sight Range 16 Robot Scan Range 14 Terrain Scan Density 10 Evasion (%) 62 Recoil Reduction 2 Item Schematics ----------------- None Robot Schematics ------------------ None Fabricated ------------ Nothing Repaired ---------- Nothing Studied --------- None Alien Tech Used ----------------- None Achievements -------------- None Challenges ------------ None Game ------ Seed VoltaicGodForcewell Manual? 0 Play Time 00:14:36 Cumulative 160.7 hours Start 2026.04.30 @ 12:22:56 End 2026.04.30 @ 12:35:03 Sessions 1 Manual Loads 0 Difficulty Rogue Special Mode None Game No. 247 Rogue 247 Adventurer 0 Explorer 0 Win Type - Total 1 Types 1/0/0/0/0/0/0/0/0/0 Lore% 54 Gallery% 56 Achievement% 43 Wizard Run 0 Options --------- Layout 1 ASCII 0 Keyboard 1 Movement Arrows Keybinds 0 Fullscreen 1 Font 24/Smallcaps Map View 50x35 Zoom Use 0% Tactical HUD 1 Map Filters NONE Filters NONE Steam 1 RUN: c349bec2-31f6-4f47-a9de-6193ccf83a0f